Cogmind - Beta 14 @@@ ROGUE MODE // 2024.11.18 @ 00:30:19 Player: Calasmeer Result: Destroyed by as-51766 with Assembled Heavy Rifle Performance ------------- Evolutions (1) 500 Regions Visited (4) 800 Robots Destroyed (61) 305 Value Destroyed (1297) 1297 Prototype IDs (0) 0 Alien Tech Used (0) 0 Bonus (109) 109 TOTAL SCORE: 3011 Bonus ------- High Alert Combat Kills 35 Follower Combat Kills 106 Friendly Fire -32 Cogmind --------- Core Integrity 0/400 Matter 291/300 Energy 27/100 System Corruption 0% Temperature Cool (0) Movement Core (400) Ox7 Location -9/Mines Parts ------- > --- POWER (1) -------- (None) > --- PROPULSION (2) --- (None) > --- UTILITY (3) ------ Large Storage Unit Signal Interpreter > --- WEAPON (3) ------- Shock Rifle Mini Grenade Launcher > --- INVENTORY (15) --- Aluminum Leg Aluminum Leg Makeshift Leg Improved Heat Sink Large Storage Unit Large Storage Unit Compact Matter Pod (150) Trap Scanner Visual Processing Unit Terrain Scanner Light Armor Plating Particle Gun Rocket Launcher Peak State ------------ > --- POWER ------------ Light Nuclear Core > --- PROPULSION ------- Light Treads Light Treads > --- UTILITY ---------- Large Storage Unit Signal Interpreter Seismic Detector > --- WEAPON ----------- Medium Laser Small Laser Particle Gun > --- INVENTORY -------- Aluminum Leg Aluminum Leg Makeshift Leg Improved Heat Sink Large Storage Unit Large Storage Unit Compact Matter Pod Trap Scanner Visual Processing Unit Terrain Scanner Light Armor Plating Shock Rifle Particle Gun Rocket Launcher Mini Grenade Launcher [Rating: 15] Favorites ----------- Power Light Ion Engine Engine Light Ion Engine Power Core Light Nuclear Core Propulsion Light Treads Treads Light Treads Wheel Compact Wheel Utility Large Storage Unit Device Seismic Detector Storage Large Storage Unit Processor Signal Interpreter Protection Light Armor Plating Weapon Light Assault Rifle Energy Gun Particle Gun Ballistic Gun Light Assault Rifle Launcher Rocket Launcher Special Weapon Mining Laser Build | -11 -10 -10 -9 -9 ------- Run | Yrd Mat Min Mat Min Slots Evolved 2 | . . . 2 . Power . | . . . . . Propulsion . | . . . . . Utility 1 | . . . 1 . Weapon 1 | . . . 1 . Parts Attached 36 | 9 8 8 7 4 Power 7 | 2 1 2 1 1 Engine 6 | 2 1 2 1 . Core 1 | . . . . 1 Reactor . | . . . . . Propulsion 8 | 2 3 1 2 . Treads 4 | 2 . . 2 . Leg . | . . . . . Wheel 4 | . 3 1 . . Hover . | . . . . . Flight . | . . . . . Utility 7 | 2 1 3 1 . Device 2 | 1 . . 1 . Storage 2 | 1 1 . . . Processor 1 | . . 1 . . Hackware . | . . . . . Protection 2 | . . 2 . . Artifact . | . . . . . Weapon 14 | 3 3 2 3 3 Energy Gun 6 | 1 1 . 2 2 Energy Cannon . | . . . . . Ballistic Gun 5 | 2 2 1 . . Ballistic Cannon . | . . . . . Launcher 2 | . . . 1 1 Special Weapon 1 | . . 1 . . Impact Weapon . | . . . . . Slashing Weapon . | . . . . . Piercing Weapon . | . . . . . Special Melee Weapon . | . . . . . Unidentified Prototypes . | . . . . . Parts Lost 12 | . 2 . 2 8 Power 3 | . 1 . 1 1 Propulsion 4 | . 1 . 1 2 Utility 1 | . . . . 1 Weapon 4 | . . . . 4 Highest Loss Streak 7 | . 2 . 2 7 To Critical Strikes . | . . . . . Average Slot Usage (%) 96 | . 97 99 84 89 Engine 12 | . 13 14 10 4 Treads 10 | . 19 . 12 18 Wheel 15 | . 6 28 8 . Device 6 | . 14 1 2 9 Storage 13 | . 14 14 11 11 Processor 6 | . . 11 11 11 Energy Gun 7 | . 2 9 12 25 Ballistic Gun 17 | . 25 14 11 3 Special Weapon 2 | . . 4 1 . Peak Build Rating 15 | 7 9 11 14 15 Average Rating 9 | 5 7 10 11 13 On Entrance 8 | . 7 9 10 14 Naked Turns . | . . . . . Heaviest Build 36 | 13 28 32 36 34 Greatest Support 40 | 40 40 26 40 40 Greatest Overweight (x) 7 | . 1 1 1 7 Average Overweight (x) . | . . 1 . . Largest Inventory Capacity 15 | 8 15 15 15 15 Average Capacity 13 | 7 12 15 15 15 Most Carried 15 | 3 13 15 15 15 Average Carried 11 | 1 7 14 14 14 Final Capacity 15 | 8 15 15 15 15 Final Carried 15 | 3 13 15 15 13 Class Distribution -------------------- 48% | Scavenger-Mutant 39% | Mutant 11% | Scavenger-Gunner Dominant Class ---------------- Mutant | -10/Materials Scavenger-Mutant | -10/Mines Scavenger-Gunner | -9/Materials Scavenger-Gunner | -9/Mines Resources | -11 -10 -10 -9 -9 ----------- Run | Yrd Mat Min Mat Min Matter Collected 1016 | 316 254 133 260 53 Remotely . | . . . . . Salvage Created 1797 | 185 638 101 619 254 Parts 133 | 12 41 8 54 18 Haulers Intercepted 1 | . 1 . . . Recyclers Shooed 5 | . 4 . . 1 Parts Field Recycled . | . . . . . Retrieved Matter . | . . . . . Parts Self-Destructed . | . . . . . Prevented . | . . . . . Kills | -11 -10 -10 -9 -9 ------- Run | Yrd Mat Min Mat Min Combat Hostiles Destroyed 33 | . 11 2 14 6 Guns 27 | . 11 2 10 4 AOE 6 | . . . 4 2 Classes Destroyed 12 | 3 5 . 3 1 Worker 7 | 2 3 . 1 1 Builder 7 | . 1 . 5 1 Tunneler 3 | 2 . 1 . . Hauler 1 | . 1 . . . Recycler 4 | 1 1 . 1 1 Operator 1 | . . . 1 . Watcher 4 | . 1 . 3 . Swarmer 6 | . 3 . 3 . Grunt 23 | . 8 2 9 4 Brawler 2 | . . . 2 . Demolisher 2 | . . . . 2 Zionite 1 | . . . 1 . Best Kill Streak 10 | 3 3 2 10 5 Combat Bots Only 4 | . 2 2 4 4 Max Kills in Single Turn 3 | 1 1 1 3 2 Gunslinging . | . . . . . Exploded 2 | . . . 2 1 Melee . | . . . . . Uniques/NPCs Destroyed . | . . . . . Combat | -11 -10 -10 -9 -9 -------- Run | Yrd Mat Min Mat Min Hostile Shots Fired 173 | . 68 18 58 29 Missed 50 | . 21 7 17 5 Damage Taken 1902 | . 522 146 464 770 Core 529 | . 109 8 99 313 Absorbed by Shields . | . . . . . Core Remaining (%) 76 | 100 . 53 . . Volleys Fired 206 | 19 98 28 44 17 Largest 3 | 2 2 2 3 3 Hottest 155 | 60 85 100 106 155 Shots Fired 389 | 28 196 41 92 32 Gun 365 | 28 196 26 85 30 Cannon . | . . . . . Launcher 9 | . . . 7 2 Special 15 | . . 15 . . Kinetic 271 | 26 187 13 44 1 Thermal 102 | . 9 28 41 24 Explosive 9 | . . . 7 2 Electromagnetic 7 | 2 . . . 5 Robot Hit Streak 13 | 5 13 4 8 8 Robot Miss Streak 5 | 2 5 3 3 2 Penetration Max . | . . . . . Secondary Targets 4 | . 1 1 . 2 Max Gunslinging Chain 1 | . 1 1 . 1 Shots Hit Robots 232 | 18 126 14 54 20 Core Hits 115 | 8 48 5 35 19 Critical Kills . | . . . . . Critical Parts Destroyed . | . . . . . Critical Strikes 3 | . . . 3 . Burn 3 | . . . 3 . Melee Attacks . | . . . . . Impact . | . . . . . Slashing . | . . . . . Piercing . | . . . . . Sneak Attacks . | . . . . . Combat Hostiles . | . . . . . Follow-up Attacks . | . . . . . Damage Inflicted 3576 | 148 1103 173 1658 494 Guns 2531 | 148 1103 173 884 223 Cannons . | . . . . . Explosions 1045 | . . . 774 271 Melee . | . . . . . Ramming . | . . . . . Kinetic 1769 | 148 1028 78 500 15 Thermal 732 | . 75 95 384 178 Explosive 1045 | . . . 774 271 Electromagnetic 30 | . . . . 30 Impact . | . . . . . Slashing . | . . . . . Piercing . | . . . . . Highest Corruption . | . . . . . Average Corruption . | . . . . . Corruption Purged . | . . . . . Corruption Blocked . | . . . . . Overload Shots . | . . . . . Overflow Damage 64 | . . . 52 12 Projectiles . | . . . . . Explosions 64 | . . . 52 12 Melee . | . . . . . Knockbacks . | . . . . . Impact . | . . . . . Kinetic . | . . . . . Secondary . | . . . . . Self-Inflicted Damage . | . . . . . Shots . | . . . . . Rammed . | . . . . . Targets Rammed . | . . . . . Kicked . | . . . . . Crushed . | . . . . . Highest Temperature 179 | 20 92 179 170 159 Average Temperature 43 | 15 25 52 37 64 Received Heat Transfer 540 | . 255 66 156 63 Siege Activations . | . . . . . Robots Corrupted . | . . . . . Combat Hostiles . | . . . . . Parts Fried . | . . . . . Impact Corruptions . | . . . . . Robots Melted . | . . . . . Combat Hostiles . | . . . . . Parts Melted 4 | . . 2 2 . Heat Transferred 2235 | . 185 222 1369 459 Parts Sabotaged . | . . . . . Parts Stolen . | . . . . . Parts Stripped . | . . . . . Power Chain Reactions . | . . . . . Alert | -11 -10 -10 -9 -9 ------- Run | Yrd Mat Min Mat Min Peak Influence 501 | 25 246 78 501 205 Initial 117 | . 16 4 . 117 Average 104 | 10 117 54 248 148 Maximum Alert Level 2 | . 1 . 2 1 Low Security (%) 88 | 100 86 100 48 92 Level 1 7 | . 13 . 19 7 Level 2 3 | . . . 31 . Level 3 . | . . . . . Level 4 . | . . . . . Level 5 . | . . . . . High Security . | . . . . . Max Security . | . . . . . Squads Dispatched 4 | . 1 . 3 . Investigation 1 | . . . 1 . Extermination . | . . . . . Reinforcement 3 | . 1 . 2 . Assault . | . . . . . Garrison . | . . . . . Intercept . | . . . . . Searches Triggered . | . . . . . Construction Impeded 1 | . . . 1 . Haulers Reinforced . | . . . . . Active Scanning Responses . | . . . . . Cargo Convoy Interrupts . | . . . . . Stealth | -11 -10 -10 -9 -9 --------- Run | Yrd Mat Min Mat Min Distress Signals 7 | . 4 . 3 . Communications Jammed . | . . . . . Distress Signals . | . . . . . Times Spotted 69 | . 32 8 21 8 Peak Tracking Total 5 | . 5 3 5 3 Tactical Retreats 3 | . 2 1 . . Traps | -11 -10 -10 -9 -9 ------- Run | Yrd Mat Min Mat Min Traps Triggered 1 | . . . 1 . Indirectly . | . . . . . Trap Hack Attempts . | . . . . . Triggered . | . . . . . Disarmed . | . . . . . Reprogrammed . | . . . . . Reused . | . . . . . Traps Extracted . | . . . . . Installed . | . . . . . Triggered . | . . . . . Machines | -11 -10 -10 -9 -9 ---------- Run | Yrd Mat Min Mat Min Machines Disabled 3 | . . . 3 . Max in Single Turn 1 | . . . 1 . Machines Repaired . | . . . . . Machines Dismantled . | . . . . . Machines Sabotaged . | . . . . . Overloaded Fab Kills . | . . . . . Hacking | -11 -10 -10 -9 -9 --------- Run | Yrd Mat Min Mat Min Machines Accessed 7 | . 5 . 2 . Terminals 4 | . 3 . 1 . Fabricators . | . . . . . Repair Stations . | . . . . . Recycling Units 2 | . 2 . . . Scanalyzers 1 | . . . 1 . Garrison Access . | . . . . . Total Hacks 10 | . 7 . 3 . Successful 2 | . 1 . 1 . Failed 8 | . 6 . 2 . Catastrophic . | . . . . . Database Lockouts . | . . . . . Manual 5 | . 4 . 1 . Terminals 7 | . 5 . 2 . Fabricators . | . . . . . Repair Stations . | . . . . . Recycling Units 2 | . 2 . . . Scanalyzers 1 | . . . 1 . Garrison Access . | . . . . . Terminal Hacks . | . . . . . Fabricator Hacks . | . . . . . Repair Station Hacks . | . . . . . Recycling Unit Hacks 1 | . 1 . . . Retrieve Components 1 | . 1 . . . Scanalyzer . | . . . . . Garrison Access Hacks . | . . . . . Unauthorized Hacks 1 | . . . 1 . Terminals 1 | . . . 1 . Botnet 1 | . . . 1 . Fabricators . | . . . . . Repair Stations . | . . . . . Recycling Units . | . . . . . Scanalyzers . | . . . . . Garrison Access . | . . . . . Data Cores Recovered . | . . . . . Used . | . . . . . Hacking Detections 4 | . 2 . 2 . Full Trace Events . | . . . . . Feedback Events . | . . . . . Feedback Blocked . | . . . . . Robot Schematics Acquired . | . . . . . Robots Built . | . . . . . Authchips . | . . . . . Time . | . . . . . Total Robot Build Rating . | . . . . . Part Schematics Acquired . | . . . . . Parts Built . | . . . . . Authchips . | . . . . . Time . | . . . . . Total Part Build Rating . | . . . . . Parts Repaired . | . . . . . Time . | . . . . . Parts Recycled . | . . . . . Recycled Matter . | . . . . . Retrieved Matter . | . . . . . Retrieved Components 5 | . 5 . . . Parts Scanalyzed . | . . . . . Part Schematics Acquired . | . . . . . Parts Damaged . | . . . . . Bothacking | -11 -10 -10 -9 -9 ------------ Run | Yrd Mat Min Mat Min Used RIF Installer . | . . . . . Robots Hacked . | . . . . . Non-combat . | . . . . . Combat . | . . . . . Robot Hacks Applied . | . . . . . Relay Couplers Released . | . . . . . Fabnet Peak Effective % . | . . . . . Robots Rewired . | . . . . . Allies Hacked . | . . . . . Hacks Repelled . | . . . . . Allies | -11 -10 -10 -9 -9 -------- Run | Yrd Mat Min Mat Min Total Allies 2 | . . 2 . . Largest Group 2 | . . 2 2 . Highest-Rated Group 47 | . . 47 47 . Highest-Rated Ally 31 | . . 31 31 . Total Orders . | . . . . . Ally Attacks 34 | . . 16 18 . Total Damage 422 | . . 210 212 . Kills 7 | . . 5 2 . Allies Corrupted . | . . . . . Allies Melted . | . . . . . Intel | -11 -10 -10 -9 -9 ------- Run | Yrd Mat Min Mat Min Robot Analysis Total . | . . . . . Derelict Logs Recovered 2 | . . 2 . . Drone Launches . | . . . . . Drone Recoveries . | . . . . . Exploration | -11 -10 -10 -9 -9 ------------- Run | Yrd Mat Min Mat Min Turns Passed 3324 | 170 1243 1326 402 183 Spaces Moved 1944 | 74 583 1045 180 62 Core 6 | 4 . . . 2 Treads 496 | 70 281 . 85 60 Legs . | . . . . . Wheels 1442 | . 302 1045 95 . Hover . | . . . . . Flight . | . . . . . Fastest Speed 50 | 50 105 105 105 160 Average Speed 122 | 154 140 105 131 167 Slowest Speed 400 | 160 240 105 240 400 Overloaded Moves . | . . . . . Propulsion Burnouts . | . . . . . Robots Hopped . | . . . . . Cave-ins Triggered . | . . . . . Exploration Rate (%) 42 | 4 69 101 27 13 Regions Visited 4 Branch Regions 2 Pre-discovered Areas 1 | . . 1 . . Known Exits Taken 2 | . . 1 1 . Unknown Exits Taken 2 | 1 1 . . . Scrap Searched 3 | . . 3 . . Spaces Dug 5 | . . 5 . . Terrain Destroyed 29 | . . 7 19 3 Melee . | . . . . . Projectile 7 | . . 7 . . AOE 22 | . . . 19 3 Terrain Rammed . | . . . . . Walls Destroyed . | . . . . . Machines Disabled . | . . . . . Actions | -11 -10 -10 -9 -9 --------- Run | Yrd Mat Min Mat Min Total 2527 | 103 844 1207 260 113 Wait 300 | . 142 109 20 29 Move 1940 | 73 582 1044 179 62 Hop . | . . . . . Pick Up 23 | 1 10 7 5 . Fast Attach 13 | 8 1 1 2 1 Attach 9 | . 2 . 5 2 Detach 5 | 1 1 1 2 . Swap 14 | 1 5 7 . 1 Drop 17 | . 3 10 3 1 Fire 206 | 19 98 28 44 17 Melee . | . . . . . Ram . | . . . . . Kick . | . . . . . Crush . | . . . . . Escape Stasis . | . . . . . Rewire . | . . . . . Trap . | . . . . . Miscellaneous . | . . . . . Route ------- -11/Scrapyard -10/Materials (discovered 3 exits: *Mat / [*Min x2]) -10/Mines (discovered 3 exits: *Mat x2 / *Sub) -9/Materials (discovered 2 exits: Mat / *Min) -9/Mines History --------- Turn | Location | Event 16 | -11/Scrapyard | Discovered new exit (range 16) 171 | -11/Scrapyard | Entered Materials 305 | -10/Materials | Build established: Mutant 612 | -10/Materials | Discovered new exit (range 16) 1046 | -10/Materials | Discovered new exit (range 12) 1373 | -10/Materials | Discovered new exit (range 13) 1414 | -10/Materials | Entered Mines 1461 | -10/Mines | Found a hidden stash of uninstalled traps 1529 | -10/Mines | Discovered new exit (range 5) 1542 | -10/Mines | Joined a pair of Derelicts in attacking an 0b10 outpost 1584 | -10/Mines | Build established: Scavenger-Mutant 1606 | -10/Mines | Learned 8 Materials zone layouts 1676 | -10/Mines | Identified exit to Materials 1764 | -10/Mines | A weapon hastily lodged in a ceiling crevice suddenly fell to the ground 1907 | -10/Mines | Learned location of Mines (-9) 2043 | -10/Mines | Received a Rocket Launcher from a helpful Derelict 2272 | -10/Mines | Discovered exit to Materials (range 5) 2326 | -10/Mines | Discovered new exit (range 10) 2331 | -10/Mines | Identified exit to Subcaves 2740 | -10/Mines | Entered Materials 2740 | -9/Materials | Accompanied by 2 allies 2740 | -9/Materials | Evolved 2 slots: Utility x1, Weapon x1 2741 | -9/Materials | Identified exit to Mines 2741 | -9/Materials | Identified exit to Materials 2745 | -9/Materials | Led the pair of lost Derelicts to an unsafe place 3142 | -9/Materials | Entered Mines 3151 | -9/Mines | Met a Derelict bent on vengeance 3202 | -9/Mines | Build established: Scavenger-Gunner 3270 | -9/Mines | Assembled infested the area 3295 | -9/Mines | Core integrity fell below 50% 3307 | -9/Mines | Core integrity fell below 20% 3325 | -9/Mines | Destroyed by as-51766 with Assembled Heavy Rifle Last Messages --------------- 03297_ The unstable cave ceiling collapses. 03298_ Seismic Detector destroyed. 03299_ The unstable cave ceiling collapses. 03300_ Sml. Laser destroyed. 03302_ The unstable cave ceiling collapses. 03303_ Particle Gun destroyed. 03303_ G-34 Mercenary destroyed. 03303_ U-05 Engineer destroyed. 03304_ K-01 Serf collects debris. 03305_ Destroyed Lgt. Ion Engine. 03305_ G-47 Trooper destroyed. 03306_ R-06 Scavenger destroyed. 03307_ K-01 Serf collects debris. 03308_ The unstable cave ceiling collapses. 03312_ D-53 Grenadier destroyed. 03313_ The unstable cave ceiling collapses. 03314_ Acquired 26 matter. 03314_ K-01 Serf collects debris. 03319_ K-01 Serf destroyed. 03323_ The unstable cave ceiling collapses. Map ----- +----------------------------------------------------+ | ???????????????????????????????????????????????? | | ???????????????????????????????????????????????? | | ???????????????????????????????????????????????? | | ???????????????????????????????????????????????? | | ???????????????????????????????????????????????? | | ???????????????????????????????????????????????? | | ???????????????????????????????????????????????? | | ???????????????????????????????????????????????? | | ???????????????????????????????????????????????? | | ???????????????????????????????????????????????? | | ???????????????????????????????????????????????? | | ???????????????????????????????????????????????? | | ???????????????????????????????????????????????? | | ?????????????#???????#####?????????????????????? | | ?????????????# =###### ##????????????????????? | | ?????????????# #????????????????????? | | ?????????????# ##???????????????????? | | ?????????????#### ### ####????????????????? | | ????????????????????#a ##???????????????? | | ????????????????????# ##??????????????? | | ????????????????????# ##?????????????? | | ???????????????????## = % ##????????????? | | ??????????????????## %!=* ! #????????????? | | ??????????????????# =%* =% #????????????? | | ??????????????###### a ! #????????????? | | ?????????????## ## @=# % #????????????? | | ?????????????# =%= # #????????????? | | ?????????????# *%* # ##? ##????????????? | | ?????????????#=!=[# ##???##?????????????? | | ?????????????##*%### #???????????????????? | | ??????????????# #?## ##???????????????????? | | ??????????????# =#??#######????????????????????? | | ??????????????# %#?????????????????????????????? | | ??????????????# #?????????????????????????????? | | ??????????????# #?????????????????????????????? | | ??????????????# #?????????????????????????????? | | ??????????????# #?????????????????????????????? | | ?????????###??# #####?????????????????????????? | | ????????## #### # ##????????????????????????? | | ????????# ##???????????????????????? | | ????????## #???????????????????????? | | ?????????## #???????????????????????? | | ??????????######## #???????????????????????? | | ?????????????????## #??????????????????????? | | ???????????????????# #??????????????????????? | | ????????????????????# ##??????????????????????? | | ?????????????????????###???????????????????????? | | ???????????????????????????????????????????????? | | | | | +----------------------------------------------------+ Best States ------------- Heat Dissipation 28 Energy Generation 14 Energy Capacity 265 Matter Stores 300 Matter Capacity 300 Sight Range 16 Terrain Scan Density 10 Armor Coverage 150 Evasion (%) 40 Recoil Reduction 2 Item Schematics ----------------- None Robot Schematics ------------------ None Fabricated ------------ Nothing Alien Tech Used ----------------- None Achievements -------------- None Challenges ------------ None Game ------ Seed AdvancedVampiricNanosword Manual? 0 Play Time 00:27:44 Cumulative 26.7 hours Start 2024.11.18 @ 00:03:46 End 2024.11.18 @ 00:30:19 Sessions 1 Manual Loads 0 Difficulty Rogue Special Mode None Game No. 28 Rogue 27 Adventurer 0 Explorer 1 Win Type - Total 0 Types 0/0/0/0/0/0/0/0/0 Lore% 33 Gallery% 31 Achievement% 27 Wizard Run 0 Options --------- Layout 2 ASCII 0 Keyboard 0 Movement Mouse Keybinds 0 Fullscreen 2 Font 32/Smallcaps Map View 50x44 Zoom Use 0% Tactical HUD 1 Map Filters NONE Filters NONE Steam 1 RUN: b4a078af-5a20-4fda-9bb6-4b866fdf1290